bitfinex/quotes_BTCUSD_20251217
["timestamp","ask_amount","ask_price","bid_price","bid_amount"]
[1765975200108,0.0035907,87225.0,87217.0,0.0114]
[1765975200510,0.2907,87229.0,87225.0,0.02801]
[1765975200746,0.00359059,87228.0,87227.0,0.04101]
[1765975201531,0.03160059,87228.0,87227.0,0.01661]
[1765975202095,0.02801,87228.0,87227.0,0.04101]
[1765975202358,0.02801,87228.0,87225.0,0.0114]
[1765975202558,0.02801,87228.0,87224.0,0.0114]
[1765975202966,0.02801,87228.0,87220.0,0.0114]
[1765975203144,0.02801,87228.0,87227.0,0.05241]
[1765975206637,0.00025138,87236.0,87227.0,0.05241]
[1765975206638,0.00025138,87236.0,87235.0,0.05369]
[1765975207480,0.03472246,87236.0,87235.0,0.05369]
[1765975207660,0.03831276,87236.0,87235.0,0.05369]
[1765975211228,0.00384168,87236.0,87235.0,0.05369]
[1765975211429,0.00025138,87236.0,87235.0,0.05369]
[1765975215741,0.00025138,87236.0,87235.0,0.01241]
[1765975216146,0.00025138,87236.0,87231.0,0.02495]
[1765975216990,0.00025138,87236.0,87233.0,0.02495]
[1765975217198,0.00025138,87236.0,87235.0,0.04128]
[1765975218386,0.00025138,87236.0,87235.0,0.09861027]
[1765975218591,0.00025138,87236.0,87235.0,0.04128]
[1765975221341,0.00025138,87236.0,87235.0,0.06420657]
[1765975221749,0.00025138,87236.0,87235.0,0.17924532]
[1765975222424,0.00025138,87236.0,87235.0,0.06420657]
[1765975222634,0.00025138,87236.0,87235.0,0.04128]
[1765975223266,0.00025138,87236.0,87235.0,0.04228]
[1765975223441,0.00025138,87236.0,87235.0,0.04328]
[1765975223774,0.00025138,87236.0,87235.0,0.04228]
[1765975224556,0.00025138,87236.0,87235.0,0.04328]
[1765975226567,0.00025138,87236.0,87235.0,0.18124532]
[1765975226751,0.00025138,87236.0,87235.0,0.08432657]
[1765975226954,0.00025138,87236.0,87235.0,0.0614]
[1765975229632,0.00025138,87236.0,87235.0,0.11873027]
[1765975229840,0.00025138,87236.0,87235.0,0.0614]
[1765975230463,0.00025138,87236.0,87235.0,0.11873027]
[1765975230871,0.00025138,87236.0,87235.0,0.0614]
[1765975233777,0.00025138,87236.0,87235.0,0.04328]
[1765975237528,0.00186425,87236.0,87235.0,0.04328]
[1765975251867,0.00025138,87236.0,87235.0,0.04328]
[1765975252078,0.00025138,87236.0,87235.0,0.18124532]
[1765975252470,0.00025138,87236.0,87235.0,0.41051109]
[1765975252683,0.00025138,87236.0,87235.0,0.38758452]
[1765975253163,0.00025138,87236.0,87235.0,0.38558452]
[1765975253365,0.00025138,87236.0,87235.0,0.15631875]
[1765975253563,0.00025138,87236.0,87235.0,0.18024532]
[1765975254570,0.00025138,87236.0,87235.0,0.41051109]
[1765975254787,0.00025138,87236.0,87235.0,0.38758452]
[1765975254958,0.00025138,87236.0,87235.0,0.38658452]
[1765975255708,0.00025138,87236.0,87235.0,0.38758452]
[1765975256446,0.00025138,87236.0,87235.0,0.15831875]
[1765975256691,0.00025138,87236.0,87235.0,0.06620657]
[1765975256862,0.00025138,87236.0,87235.0,0.04328]
[1765975261519,0.00025138,87236.0,87235.0,0.002]
[1765975261900,0.00025138,87236.0,87235.0,0.04158]
[1765975262680,0.00025138,87236.0,87235.0,0.04058]
[1765975262882,0.00025138,87236.0,87235.0,0.03958]
[1765975263996,0.00025138,87236.0,87235.0,0.04058]
[1765975264411,0.00025138,87236.0,87235.0,0.04158]
[1765975267658,0.00025138,87236.0,87235.0,0.002]
[1765975268306,0.00025138,87236.0,87235.0,0.02376]
[1765975268514,0.00025138,87236.0,87235.0,0.03968]
[1765975277852,0.00025138,87236.0,87235.0,0.01692]
[1765975278210,0.00025138,87236.0,87235.0,0.03968]
[1765975279141,0.00025138,87236.0,87235.0,0.01692]
[1765975279445,0.00025138,87236.0,87235.0,0.001]
[1765975279666,0.00025138,87236.0,87235.0,0.02376]
[1765975279924,0.00025138,87236.0,87235.0,0.03968]
[1765975283787,0.00025138,87236.0,87235.0,0.0514]
[1765975287426,0.00025138,87236.0,87235.0,0.01272]
[1765975287636,0.4203044,87236.0,87235.0,0.001]
[1765975287876,0.51347406,87236.0,87235.0,0.001]
[1765975288085,0.32068448,87236.0,87235.0,0.001]
[1765975288710,0.2907,87235.0,87227.0,0.01172]
[1765975288909,0.00359023,87234.0,87228.0,0.02276]
[1765975289415,0.02984,87233.0,87227.0,0.01172]
[1765975289593,0.00359023,87232.0,87227.0,0.01172]
[1765975290195,0.02984,87233.0,87227.0,0.01172]
[1765975290967,0.00359037,87232.0,87227.0,0.01172]
[1765975291173,0.03259946,87231.0,87220.0,0.02984]
[1765975291415,0.32054,87233.0,87220.0,0.0526]
[1765975291626,0.00359038,87232.0,87221.0,0.02276]
[1765975291783,0.00359036,87232.0,87221.0,0.02276]
[1765975292233,0.02984,87233.0,87221.0,0.02276]
[1765975292642,0.02984,87233.0,87227.0,0.001]
[1765975293057,0.02984,87233.0,87226.0,0.01172]
[1765975293263,0.09468223,87233.0,87226.0,0.01172]
[1765975298555,0.09468223,87233.0,87226.0,0.03454]
[1765975299327,0.02984,87233.0,87226.0,0.03454]
[1765975301259,0.02984,87233.0,87232.0,0.05048]
[1765975301462,0.00025138,87236.0,87235.0,0.03908]
[1765975301663,0.00025138,87236.0,87232.0,0.0114]
[1765975301859,0.03472211,87236.0,87232.0,0.0114]
[1765975304253,0.03472211,87236.0,87232.0,0.03422]
[1765975304466,0.03472211,87236.0,87233.0,0.02282]
[1765975308000,0.03472211,87236.0,87232.0,0.0114]
[1765975308436,0.00025138,87236.0,87232.0,0.0114]
[1765975309269,0.02307138,87236.0,87232.0,0.0114]
[1765975309450,0.02307138,87236.0,87230.0,0.01835652]
[1765975309451,0.0035902,87235.0,87230.0,0.01835652]
[1765975309652,0.0035902,87235.0,87231.0,0.01835652]
[1765975309826,0.02307138,87236.0,87231.0,0.01835652]
[1765975310025,0.00025138,87236.0,87231.0,0.01835652]
[1765975310324,0.01835652,87235.0,87231.0,0.01835652]
[1765975311789,0.01835652,87235.0,87227.0,0.0114]
[1765975312110,0.04992831,87235.0,87231.0,0.01835652]
[1765975314014,0.01835652,87235.0,87231.0,0.01835652]
[1765975314597,0.00025138,87236.0,87231.0,0.01835652]
[1765975314825,0.0186079,87236.0,87231.0,0.01835652]
[1765975315026,0.00359021,87235.0,87231.0,0.01835652]
[1765975322307,0.0160909,87235.0,87231.0,0.01835652]
[1765975322504,0.00359021,87234.0,87231.0,0.01835652]
[1765975322654,0.05141326,87234.0,87231.0,0.01835652]
[1765975322858,0.00359021,87233.0,87231.0,0.01835652]
[1765975323332,0.00359021,87233.0,87226.0,0.01172]
[1765975323488,0.00359021,87233.0,87230.0,0.01835652]
[1765975324094,0.00359021,87234.0,87230.0,0.01835652]
[1765975329743,0.00359021,87234.0,87226.0,0.01172]
[1765975329953,0.0461183,87233.0,87226.0,0.01172]
[1765975330148,0.00359021,87232.0,87226.0,0.01172]
[1765975330720,0.00359021,87232.0,87224.0,0.02954]
[1765975331426,0.00359035,87232.0,87224.0,0.02954]
[1765975332599,0.00359035,87232.0,87224.0,0.01242]
[1765975333222,0.02954,87231.0,87224.0,0.01242]
[1765975333384,0.00359035,87230.0,87224.0,0.01242]
[1765975333975,0.03447251,87229.0,87224.0,0.01242]
[1765975334788,0.03447251,87229.0,87224.0,0.01142]
[1765975334992,0.0438068,87229.0,87224.0,0.01242]
[1765975335242,0.0438068,87229.0,87224.0,0.01342]
[1765975335391,0.00641,87232.0,87224.0,0.001]
[1765975335588,0.03447394,87228.0,87220.0,0.01172]
[1765975335828,0.03447394,87228.0,87224.0,0.002]
[1765975336208,0.03447394,87228.0,87224.0,0.001]
[1765975336405,0.03447394,87228.0,87220.0,0.01172]
[1765975336406,0.01222728,87227.0,87220.0,0.01172]
[1765975336607,0.03447394,87228.0,87220.0,0.01272]
[1765975336853,0.00641,87231.0,87220.0,0.01272]
[1765975337150,0.03806433,87230.0,87220.0,0.01272]
[1765975337479,0.00359039,87229.0,87220.0,0.01272]
[1765975337920,0.03806433,87229.0,87220.0,0.01172]
[1765975338052,0.03806433,87229.0,87217.0,0.05384]
[1765975338053,0.00641,87225.0,87224.0,0.001]
[1765975338291,0.00641,87225.0,87220.0,0.001]
[1765975338292,0.01641039,87225.0,87220.0,0.001]
[1765975338476,0.00641,87221.0,87220.0,0.001]
[1765975338849,0.00641,87221.0,87217.0,0.01812]
[1765975339049,0.00641,87221.0,87220.0,0.001]
[1765975339260,0.02476652,87221.0,87220.0,0.001]
[1765975339571,0.03161195,87221.0,87204.0,0.03589]
[1765975339784,0.03117652,87221.0,87215.0,0.01835652]
[1765975339988,0.03117652,87221.0,87220.0,0.001]
[1765975340205,0.0347673,87221.0,87220.0,0.001]
[1765975340400,0.03117652,87221.0,87220.0,0.001]
[1765975341206,0.03117652,87221.0,87215.0,0.01835652]
[1765975341619,0.03117652,87221.0,87220.0,0.001]
[1765975342044,0.01835652,87221.0,87220.0,0.001]
[1765975342266,0.01835652,87221.0,87215.0,0.04365652]
[1765975342484,0.01835652,87221.0,87215.0,0.04465652]
[1765975342690,0.01835652,87221.0,87215.0,0.04365652]
[1765975342902,0.01835652,87221.0,87215.0,0.01835652]
[1765975343100,0.01835652,87221.0,87220.0,0.001]
[1765975343766,0.02476652,87221.0,87220.0,0.001]
[1765975344209,0.03937619,87221.0,87220.0,0.001]
[1765975344355,0.03937619,87221.0,87220.0,0.002]
[1765975344556,0.03296619,87221.0,87220.0,0.001]
[1765975345387,0.01835652,87221.0,87220.0,0.001]
[1765975345802,0.01835652,87221.0,87220.0,0.002]
[1765975346157,0.03476746,87221.0,87220.0,0.002]
[1765975346785,0.44038761,87221.0,87220.0,0.002]
[1765975347360,0.2907,87220.0,87208.0,4.32e-05]
[1765975347564,0.0824687,87219.0,87208.0,4.32e-05]
[1765975347763,0.00359094,87218.0,87208.0,4.32e-05]
[1765975347971,0.00641,87209.0,87208.0,4.32e-05]
[1765975349180,0.02476652,87209.0,87208.0,4.32e-05]
[1765975349383,0.02476652,87209.0,87208.0,0.0020432]
[1765975350026,0.08126619,87209.0,87208.0,0.0020432]
[1765975350788,2.50859781,87209.0,87208.0,0.0020432]
[1765975351003,2.46491814,87209.0,87208.0,0.0010432]
[1765975351166,2.46491814,87209.0,87185.0,0.01835652]
[1765975351167,0.00641,87205.0,87185.0,0.01835652]
[1765975351372,0.2907,87199.0,87185.0,0.01846459]
[1765975351716,0.01282,87186.0,87185.0,0.00010807]
[1765975352066,0.00641,87186.0,87185.0,0.00010807]
[1765975352269,0.03449058,87186.0,87185.0,0.00010807]
[1765975352701,0.03449058,87186.0,87185.0,0.00110807]
[1765975353913,0.03449058,87186.0,87185.0,0.00210807]
[1765975354250,0.04699127,87186.0,87185.0,0.00210807]
[1765975354452,0.0529724,87186.0,87185.0,0.00210807]
[1765975355603,0.18232542,87186.0,87185.0,0.00210807]
[1765975355771,0.04860414,87186.0,87185.0,0.00210807]
[1765975357110,0.06142414,87186.0,87185.0,0.00010807]
[1765975357457,0.05501414,87186.0,87185.0,0.00010807]
[1765975358496,0.54090344,87195.0,87185.0,0.00172094]
[1765975358703,0.01185,87186.0,87185.0,0.00172094]
[1765975359998,0.01185,87186.0,87185.0,0.00010807]
[1765975360589,0.30255,87186.0,87185.0,0.00010807]
[1765975361415,0.30355,87186.0,87185.0,0.00010807]
[1765975362340,2.30355,87186.0,87185.0,0.00010807]
[1765975362491,2.41847015,87186.0,87185.0,0.00010807]
[1765975362708,0.40562015,87180.0,87179.0,0.00202323]
[1765975363339,0.43559015,87180.0,87179.0,0.00202323]
[1765975363915,0.43559015,87180.0,87179.0,0.00302323]
[1765975364546,0.32067,87180.0,87179.0,0.00302323]
[1765975364901,0.32067,87180.0,87179.0,0.04138323]
[1765975365912,0.32067,87180.0,87179.0,0.01814323]
[1765975366252,0.32067,87180.0,87179.0,0.00202323]
[1765975367439,0.352737,87180.0,87179.0,0.00202323]
[1765975369356,0.32067,87180.0,87179.0,0.00202323]
[1765975370484,0.32426269,87180.0,87179.0,0.00202323]
[1765975373807,2.32426269,87180.0,87179.0,0.00202323]
[1765975374035,2.32426269,87180.0,87179.0,3.23e-06]
[1765975374036,2.43918284,87180.0,87179.0,3.23e-06]
[1765975375012,2.32426269,87180.0,87179.0,3.23e-06]
[1765975378556,2.43972347,87180.0,87179.0,3.23e-06]
[1765975378944,0.32426269,87180.0,87179.0,3.23e-06]
[1765975382623,0.43918284,87180.0,87179.0,3.23e-06]
[1765975383273,0.32426269,87180.0,87179.0,3.23e-06]
[1765975383560,2.32426269,87180.0,87179.0,3.23e-06]
[1765975383789,2.43918284,87180.0,87179.0,3.23e-06]
[1765975384002,2.55464362,87180.0,87179.0,3.23e-06]
[1765975385447,2.55564362,87180.0,87179.0,3.23e-06]
[1765975385643,2.69072347,87180.0,87159.0,0.0004]
[1765975385844,0.2907,87169.0,87162.0,0.00051289]
[1765975386184,0.00359269,87168.0,87162.0,0.00051289]
[1765975386397,0.00359269,87167.0,87162.0,0.00051289]
[1765975386573,0.00359269,87167.0,87158.0,0.0004]
[1765975386574,0.45563854,87159.0,87158.0,0.0004]
[1765975386802,2.34431108,87159.0,87158.0,0.00044735]
[1765975387009,2.3253014,87159.0,87158.0,0.00044735]
[1765975387283,2.29429269,87159.0,87158.0,0.00044735]
[1765975387592,2.31245269,87159.0,87158.0,0.00044735]
[1765975387792,2.3170535,87159.0,87158.0,0.00044735]
[1765975387992,2.34283869,87159.0,87158.0,0.00044735]
[1765975388340,2.34383869,87159.0,87158.0,0.00044735]
[1765975388543,2.34283869,87159.0,87158.0,0.00044735]
[1765975388944,2.34283869,87159.0,87157.0,0.0004]
[1765975388945,2.40562015,87152.0,87143.0,0.0004]
[1765975389171,2.50227995,87152.0,87143.0,0.0004]
[1765975389935,2.68514109,87145.0,87143.0,0.0004]
[1765975390168,2.48401642,87145.0,87143.0,0.0004]
[1765975390346,2.5994772,87145.0,87143.0,0.0004]
[1765975390549,2.6040793,87145.0,87143.0,0.0004]
[1765975391177,0.25,87140.0,87116.0,0.01835652]
[1765975391378,0.2907,87136.0,87116.0,0.01996939]
[1765975391589,0.2907,87136.0,87115.0,0.0004]
[1765975391590,0.2907,87116.0,87115.0,0.0004]
[1765975391790,2.36247108,87116.0,87115.0,0.0004]
[1765975391988,2.29429269,87116.0,87115.0,0.0004]
[1765975392544,2.31725691,87116.0,87115.0,0.0004]
[1765975392756,2.43271769,87116.0,87115.0,0.00077704]
[1765975393597,2.48273608,87116.0,87115.0,0.00077704]
[1765975393800,2.48273608,87116.0,87072.0,0.01149]
[1765975393801,2.48273608,87116.0,87082.0,0.02293]
[1765975393802,2.0,87098.0,87082.0,0.02293]
[1765975394009,0.2907,87095.0,87084.0,0.02293]
[1765975394209,0.25,87100.0,87090.0,0.01835652]
[1765975394210,0.2907,87091.0,87090.0,0.01835652]
[1765975394417,0.33422212,87102.0,87090.0,0.01835652]
[1765975394418,0.02296659,87094.0,87090.0,0.00161287]
[1765975394587,0.02296659,87094.0,87093.0,0.04068287]
[1765975394841,0.2907,87109.0,87094.0,0.02293]
[1765975394842,0.2907,87107.0,87094.0,0.02293]
[1765975395044,0.00359569,87106.0,87104.0,0.01614]
[1765975395276,2.0,87105.0,87085.0,0.01835652]
[1765975395404,0.2907,87106.0,87095.0,0.02293]
[1765975395609,0.2907,87106.0,87097.0,0.02293]
[1765975395812,0.2907,87106.0,87099.0,0.02293]
[1765975396012,0.2907,87106.0,87099.0,0.02454287]
[1765975396809,0.25,87120.0,87099.0,0.02454287]
[1765975396810,0.25,87130.0,87108.0,0.02293]
[1765975397012,0.00359532,87129.0,87128.0,0.03907]
[1765975397307,0.02454287,87136.0,87132.0,0.02293]
[1765975397473,2.0,87149.0,87132.0,0.02454287]
[1765975397674,2.0,87139.0,87132.0,0.02454287]
[1765975397853,0.00359446,87138.0,87132.0,0.02454287]
[1765975398056,0.00359446,87138.0,87132.0,0.02254287]
[1765975398278,0.00037652,87138.0,87132.0,0.02254287]
[1765975398479,0.00037652,87138.0,87132.0,0.00161287]
[1765975398935,0.2907,87136.0,87132.0,0.00161287]
[1765975400377,0.0705671,87135.0,87119.0,0.01835652]
[1765975400617,0.00359468,87134.0,87119.0,0.01996939]
[1765975400789,0.2907,87136.0,87119.0,0.01996939]
[1765975401005,0.00359468,87135.0,87119.0,0.01996939]
[1765975401603,0.2907,87136.0,87119.0,0.01996939]
[1765975401842,0.00037652,87138.0,87119.0,0.01996939]
[1765975401843,0.00037652,87138.0,87122.0,0.02293]
[1765975402008,0.2907,87136.0,87124.0,0.02293]
[1765975402207,0.325213,87136.0,87126.0,0.02293]
[1765975402411,0.2907,87136.0,87127.0,0.02295499]
[1765975402710,0.2907,87136.0,87135.0,0.00138469]
[1765975403106,0.2917,87136.0,87135.0,0.00138469]
[1765975403632,0.2907,87136.0,87135.0,0.00138469]
[1765975404041,0.2917,87136.0,87135.0,0.00138469]
[1765975405029,0.001,87136.0,87135.0,0.00238469]
[1765975405424,0.001,87136.0,87135.0,0.04145469]
[1765975406443,0.001,87136.0,87135.0,0.00238469]
[1765975409394,0.001,87136.0,87135.0,0.00399756]
[1765975409590,0.2907,87149.0,87135.0,0.00399756]
[1765975409591,0.11100276,87149.0,87135.0,0.00399756]
[1765975409792,0.00460146,87141.0,87136.0,0.03370215]
[1765975409996,2.0,87140.0,87137.0,0.02293]
[1765975410465,2.0,87140.0,87139.0,0.00125875]
[1765975411565,0.00460146,87141.0,87139.0,0.00125875]
[1765975411566,2.0,87148.0,87139.0,0.01901162]
[1765975411769,0.2907,87143.0,87140.0,0.13796875]
[1765975411980,2.0,87142.0,87140.0,0.13796875]
[1765975412198,0.2907,87142.0,87141.0,0.03907]
[1765975412630,0.2907,87142.0,87141.0,0.03807]
[1765975413499,0.001,87142.0,87141.0,0.03807]
[1765975413962,0.002,87142.0,87141.0,0.03807]
[1765975414379,0.001,87142.0,87141.0,0.03807]
[1765975414607,0.001,87142.0,87141.0,0.03907]
[1765975414817,0.2907,87146.0,87141.0,0.03907]
[1765975415025,0.2907,87144.0,87141.0,0.01614]
[1765975415229,2.0,87143.0,87141.0,0.001]
[1765975416103,2.0,87143.0,87140.0,0.01149]
[1765975416529,2.0,87143.0,87141.0,0.001]
[1765975416732,2.0,87143.0,87140.0,0.01149]
[1765975416929,2.0,87143.0,87141.0,0.001]
[1765975417283,2.0,87143.0,87142.0,0.00116431]
[1765975419314,2.0,87143.0,87131.0,0.02295394]
[1765975419315,2.11546078,87143.0,87128.0,0.02295473]
[1765975419570,2.11546078,87143.0,87107.0,0.04114785]
[1765975419571,0.11492015,87115.0,87102.0,0.01273844]
[1765975419790,2.40562015,87115.0,87090.0,0.01239]
[1765975419996,2.0,87113.0,87092.0,0.02298]
[1765975420222,0.33451345,87110.0,87093.0,0.01857635]
[1765975420425,2.0,87112.0,87094.0,0.02298]
[1765975420656,0.2907,87113.0,87103.0,0.01835652]
[1765975420657,2.0,87109.0,87103.0,0.01835652]
[1765975420881,2.0,87112.0,87103.0,0.01835652]
[1765975421486,2.0,87112.0,87104.0,0.02296105]
[1765975421487,0.40616078,87111.0,87104.0,0.02296105]
[1765975421695,0.2907,87105.0,87094.0,0.02334021]
[1765975421895,2.29429557,87104.0,87103.0,0.02807]
[1765975422101,2.29429557,87104.0,87103.0,0.01239]
[1765975422519,0.29429557,87104.0,87103.0,0.01239]
[1765975422814,0.29429557,87104.0,87103.0,0.01400287]
[1765975423016,0.29429557,87104.0,87103.0,0.02968287]
[1765975423347,0.29429557,87104.0,87103.0,0.03168287]
[1765975423552,0.29429557,87104.0,87103.0,0.01500287]
[1765975423978,0.29429557,87104.0,87103.0,0.01700287]
[1765975424146,0.00359557,87104.0,87103.0,0.01700287]
[1765975424351,2.0,87109.0,87103.0,0.01700287]
[1765975424551,0.00359557,87108.0,87104.0,0.01835652]
[1765975424723,2.0,87107.0,87104.0,0.01996939]
[1765975424927,2.0,87105.0,87104.0,0.01996939]
[1765975425133,2.00359557,87105.0,87104.0,0.01996939]
[1765975426544,2.00359557,87105.0,87104.0,0.02296939]
[1765975426917,2.00359557,87105.0,87104.0,0.02416592]
[1765975427140,2.00359557,87105.0,87104.0,0.06282592]
[1765975427625,0.2907,87119.0,87105.0,0.11503875]
[1765975427797,0.2907,87114.0,87105.0,0.11665162]
[1765975428127,0.03452015,87116.0,87105.0,0.11665162]
[1765975428128,0.2907,87109.0,87105.0,0.11665162]
[1765975428302,0.00359545,87108.0,87105.0,0.13963162]
[1765975429317,0.00359545,87108.0,87105.0,0.14063162]
[1765975429515,0.2907,87113.0,87105.0,0.13963162]
[1765975429834,2.0,87108.0,87105.0,0.02759287]
[1765975430190,2.0,87108.0,87105.0,0.02559287]
[1765975430415,2.0,87108.0,87105.0,0.00461287]
[1765975430796,0.00359545,87107.0,87105.0,0.00461287]
[1765975431144,0.2907,87112.0,87105.0,0.00361287]
[1765975431345,2.0,87109.0,87105.0,0.00461287]
[1765975431676,0.2907,87110.0,87068.0,0.01239]
[1765975431677,2.2907,87096.0,87068.0,0.01239]
[1765975431884,0.25,87100.0,87081.0,0.01239]
[1765975431885,2.29429545,87095.0,87081.0,0.01239]
[1765975432085,0.2907,87095.0,87094.0,0.00198939]
[1765975432894,0.2907,87095.0,87094.0,0.00398939]
[1765975433102,0.2907,87095.0,87094.0,0.00198939]
[1765975433520,0.2907,87095.0,87094.0,0.00450097]
[1765975433758,0.2907,87095.0,87094.0,0.0028881]
[1765975434186,2.29429604,87095.0,87094.0,0.0028881]
[1765975434599,2.31265256,87095.0,87094.0,0.0028881]
[1765975435020,2.31265256,87095.0,87094.0,0.0018881]
[1765975445796,0.2907,87092.0,87073.0,0.01824]
[1765975446001,0.2907,87088.0,87082.0,0.01835652]
[1765975446198,0.2907,87084.0,87073.0,0.0017125]
[1765975446411,0.50258726,87083.0,87073.0,0.0017125]
[1765975446702,0.2907,87085.0,87073.0,0.0017125]
[1765975446909,0.2907,87085.0,87073.0,0.00109963]
[1765975446910,0.2907,87079.0,87073.0,0.00109963]
[1765975447115,2.40562015,87074.0,87073.0,0.00109963]
[1765975447309,2.40562015,87074.0,87064.0,0.97401675]
[1765975447310,2.2907,87069.0,87064.0,0.97401675]
[1765975447509,0.2907,87067.0,87064.0,0.97401675]
[1765975447809,2.2907,87065.0,87064.0,0.97401675]
[1765975448082,2.29429714,87065.0,87064.0,0.97401675]
[1765975448747,2.32883859,87065.0,87064.0,0.97401675]
[1765975449591,2.44375874,87065.0,87064.0,0.97401675]
[1765975449762,0.00359714,87065.0,87064.0,0.78016962]
[1765975449962,0.00011281,87069.0,87065.0,0.13843875]
[1765975450174,0.00011281,87069.0,87068.0,0.05950939]
[1765975451459,0.00011281,87069.0,87068.0,0.17454814]
[1765975452963,0.00011281,87069.0,87068.0,0.05950939]
[1765975453178,0.00011281,87069.0,87068.0,0.03610939]
[1765975453365,0.00011281,87069.0,87068.0,0.20874854]
[1765975453571,0.00011281,87069.0,87068.0,0.23171909]
[1765975453783,0.00011281,87069.0,87068.0,0.16150738]
[1765975454009,0.00011281,87069.0,87068.0,0.18447793]
[1765975454495,0.00011281,87069.0,87068.0,0.18647793]
[1765975454644,0.00111281,87069.0,87068.0,0.18647793]
[1765975454857,0.00111281,87069.0,87068.0,0.18447793]
[1765975455270,0.00111281,87069.0,87068.0,0.18747793]
[1765975456094,0.00111281,87069.0,87068.0,0.1860815]
[1765975457459,0.00111281,87069.0,87068.0,0.1284729]
[1765975460330,0.00111281,87069.0,87068.0,0.1467129]
[1765975461759,0.00111281,87069.0,87068.0,0.08420235]
[1765975461938,0.00111281,87069.0,87068.0,0.0267722]
[1765975462141,0.00111281,87069.0,87068.0,0.0085322]
[1765975462339,0.00111281,87069.0,87068.0,0.0246722]
[1765975462525,0.00011281,87069.0,87068.0,0.16311095]
[1765975462733,0.00011281,87069.0,87068.0,0.16011095]
[1765975463152,0.00011281,87069.0,87068.0,0.16211095]
[1765975463564,0.00011281,87069.0,87068.0,0.00281924]
[1765975464896,0.00011281,87069.0,87068.0,0.04235924]
[1765975466480,0.00011281,87069.0,87068.0,0.01895924]
[1765975466979,0.00011281,87069.0,87068.0,0.00281924]
[1765975467178,0.00011281,87069.0,87068.0,0.01459924]
[1765975467992,0.00011281,87069.0,87068.0,0.00281924]
[1765975468674,0.00704568,87069.0,87068.0,0.00281924]
[1765975468911,0.00704568,87069.0,87064.0,0.73901675]
[1765975468914,2.01064,87065.0,87064.0,0.73901675]
[1765975469117,2.29961635,87065.0,87064.0,0.73901675]
[1765975469317,0.29429635,87065.0,87064.0,0.73901675]
[1765975469519,0.00359635,87065.0,87064.0,0.73901675]
[1765975470190,0.00891635,87065.0,87064.0,0.73901675]
[1765975470540,0.00991635,87065.0,87064.0,0.73901675]
[1765975470746,0.00891635,87065.0,87064.0,0.73901675]
[1765975471744,0.00891635,87065.0,87064.0,0.40401675]
[1765975471745,2.71944119,87065.0,87064.0,0.40401675]
[1765975471992,2.88806557,87065.0,87064.0,0.40401675]
[1765975472819,2.88806557,87065.0,87064.0,0.16901675]
[1765975473555,2.51117602,87065.0,87064.0,0.16901675]
[1765975473813,2.29790922,87065.0,87064.0,0.16901675]
[1765975473991,2.29590922,87065.0,87064.0,0.16901675]
[1765975474580,2.29890922,87065.0,87064.0,0.16901675]
[1765975474987,2.29590922,87065.0,87064.0,0.16901675]
[1765975475189,2.29690922,87065.0,87064.0,0.16901675]
[1765975475695,2.29990922,87065.0,87064.0,0.16901675]
[1765975475917,2.41537,87065.0,87064.0,0.16901675]
[1765975476328,2.41237,87065.0,87064.0,0.16901675]
[1765975476839,2.41137,87065.0,87064.0,0.16901675]
[1765975477042,2.41237,87065.0,87064.0,0.16901675]
[1765975477238,2.41182937,87065.0,87064.0,0.16901675]
[1765975478059,2.6415428,87065.0,87064.0,0.16901675]
[1765975478295,0.40562015,87063.0,87060.0,0.00025213]
[1765975478426,0.2907,87061.0,87060.0,0.00025213]
[1765975478628,2.29429635,87061.0,87060.0,0.00025213]
[1765975479760,2.29529635,87061.0,87060.0,0.00025213]
[1765975480746,2.41175713,87061.0,87060.0,0.00025213]
[1765975481668,2.29629635,87061.0,87060.0,0.00025213]
[1765975483369,2.4112165,87061.0,87060.0,0.00025213]
[1765975484188,2.29629635,87061.0,87060.0,0.00025213]
[1765975485054,2.52602033,87061.0,87060.0,0.00025213]
[1765975485254,2.29629635,87061.0,87060.0,0.00025213]
[1765975485540,2.64148111,87061.0,87060.0,0.00025213]
[1765975485934,2.64148111,87061.0,87060.0,2.13e-06]
[1765975486220,2.57669744,87061.0,87060.0,2.13e-06]
[1765975486394,2.80642142,87061.0,87060.0,2.13e-06]
[1765975487116,2.80442142,87061.0,87060.0,2.13e-06]
[1765975487319,2.80642142,87061.0,87060.0,2.13e-06]
[1765975488289,2.80642142,87061.0,87050.0,2.13e-06]
[1765975488426,2.68538891,87051.0,87050.0,2.13e-06]
[1765975488634,2.70726703,87051.0,87050.0,2.13e-06]
[1765975489415,2.36259651,87051.0,87050.0,2.13e-06]
[1765975489963,2.36259651,87051.0,87038.0,2.13e-06]
[1765975489964,2.40562015,87039.0,87038.0,2.13e-06]
[1765975490094,2.29429812,87039.0,87038.0,2.13e-06]
[1765975490943,2.29429812,87039.0,87021.0,0.01049213]
[1765975490944,0.34292297,87031.0,87021.0,0.01049213]
[1765975491087,0.2907,87028.0,87016.0,0.0002]
[1765975491283,0.2907,87029.0,87025.0,0.03626]
[1765975491839,0.2907,87029.0,87025.0,0.01525]
[1765975492004,0.2907,87029.0,87016.0,0.11523875]
[1765975492197,0.2907,87029.0,87017.0,0.02298401]
[1765975492915,0.34292297,87030.0,87016.0,0.11523875]
[1765975492916,0.34292297,87030.0,87025.0,0.002]
[1765975493075,0.2907,87029.0,87025.0,0.002]
[1765975493301,0.2907,87029.0,87016.0,0.11523875]
[1765975493710,0.2907,87027.0,87017.0,0.002]
[1765975494030,2.0,87025.0,87017.0,0.002]
[1765975494230,0.34292297,87030.0,87017.0,0.002]
[1765975494231,2.0,87026.0,87017.0,0.002]
[1765975494446,2.0,87024.0,87017.0,0.002]
[1765975494787,2.0,87024.0,87016.0,0.0002]
[1765975494788,2.0,87023.0,87016.0,0.0002]
[1765975494988,0.003599,87022.0,87016.0,0.0002]
[1765975495280,2.0,87021.0,87016.0,0.0022]
[1765975495560,0.11492015,87017.0,87016.0,0.0022]
[1765975495711,0.11492015,87017.0,87016.0,0.0002]
[1765975496142,0.11492015,87017.0,87016.0,0.0022]
[1765975496490,0.00161287,87021.0,87016.0,0.0022]
[1765975496684,0.0035992,87024.0,87016.0,0.0002]
[1765975496899,2.0,87021.0,87016.0,0.0002]
[1765975497087,0.0035992,87020.0,87016.0,0.0002]
[1765975497296,0.0035992,87021.0,87016.0,0.0002]
[1765975498061,0.2907,87022.0,87016.0,0.0002]
[1765975498283,0.0035992,87021.0,87016.0,0.0002]
[1765975498489,0.0035992,87021.0,87016.0,0.0022]